Cogmind - Beta 13 @@@ ROGUE MODE // 2024.04.12 @ 21:47:30 Player: chexo4 Result: Destroyed by C-17 Slicer with Blade Saw Performance ------------- Evolutions (2) 1000 Regions Visited (7) 1400 Robots Destroyed (36) 180 Value Destroyed (789) 789 Prototype IDs (24) 480 Alien Tech Used (0) 0 Bonus (399) 399 TOTAL SCORE: 4248 Bonus ------- Follower Combat Kills 99 Aligned with FarCom 300 Cogmind --------- Core Integrity 0/550 Matter 300/300 Energy 99/100 System Corruption 0% Temperature Cool (0) Movement Core (50) Location -8/Materials Parts ------- > --- POWER (1) -------- (None) > --- PROPULSION (4) --- (None) > --- UTILITY (4) ------ (None) > --- WEAPON (2) ------- (None) > --- INVENTORY (5) ---- High-capacity Battery (250) High-capacity Matter Pod (200) Light Assault Rifle Mining Laser Mining Claw Peak State ------------ > --- POWER ------------ Light Ion Engine > --- PROPULSION ------- Wheel Wheel Wheel Wheel > --- UTILITY ---------- Lightpack 2.0 Splice Drone Bay > --- WEAPON ----------- Beam Cannon Light Assault Rifle > --- INVENTORY -------- Light Ion Engine Small Storage Unit High-capacity Battery High-capacity Matter Pod Improved Terrain Scanner Mining Laser Mining Claw [Rating: 44] Favorites ----------- Power Light Ion Engine Engine Light Ion Engine Propulsion Wheel Wheel Wheel Utility Medium Storage Unit Device Splice Drone Bay Storage Medium Storage Unit Weapon Beam Cannon Energy Cannon Beam Cannon Ballistic Gun Assault Rifle Impact Weapon Heavy Mace Slashing Weapon Mining Claw Build | -11 -10 -10 -9 -9 -9 -8 -8 ------- Run | Yrd Mat Min Mat Min Exi Min Mat Slots Evolved 4 | . . . 2 . . . 2 Power . | . . . . . . . . Propulsion 2 | . . . 2 . . . . Utility 2 | . . . . . . . 2 Weapon . | . . . . . . . . Parts Attached 34 | 8 10 5 3 . 1 1 6 Power 4 | 1 1 . . . 1 . 1 Engine 4 | 1 1 . . . 1 . 1 Core . | . . . . . . . . Reactor . | . . . . . . . . Propulsion 10 | 3 4 1 1 . . 1 . Treads . | . . . . . . . . Leg . | . . . . . . . . Wheel 10 | 3 4 1 1 . . 1 . Hover . | . . . . . . . . Flight . | . . . . . . . . Utility 9 | 2 1 2 . . . . 4 Device 6 | 1 . 2 . . . . 3 Storage 3 | 1 1 . . . . . 1 Processor . | . . . . . . . . Hackware . | . . . . . . . . Protection . | . . . . . . . . Artifact . | . . . . . . . . Weapon 11 | 2 4 2 2 . . . 1 Energy Gun . | . . . . . . . . Energy Cannon 2 | . . 1 1 . . . . Ballistic Gun 6 | 2 3 1 . . . . . Ballistic Cannon . | . . . . . . . . Launcher . | . . . . . . . . Special Weapon . | . . . . . . . . Impact Weapon 1 | . . . . . . . 1 Slashing Weapon 2 | . 1 . 1 . . . . Piercing Weapon . | . . . . . . . . Special Melee Weapon . | . . . . . . . . Unidentified Prototypes 1 | . . 1 . . . . . Parts Lost 13 | . 4 1 . . . . 8 Power 2 | . . . . . . . 2 Propulsion 7 | . 2 1 . . . . 4 Utility 2 | . 1 . . . . . 1 Weapon 2 | . 1 . . . . . 1 Highest Loss Streak 8 | . 2 1 . . . . 8 To Critical Strikes . | . . . . . . . . Average Slot Usage (%) 87 | . 90 93 87 88 88 94 69 Engine 11 | . 14 14 11 11 11 11 7 Wheel 30 | . 26 27 32 33 33 38 29 Device 8 | . 6 7 11 11 11 11 7 Storage 12 | . 14 14 11 11 11 11 8 Energy Cannon 7 | . . 8 10 11 11 11 7 Ballistic Gun 15 | . 27 19 11 11 11 11 6 Naked Turns 36 | . . . . . . . 36 Heaviest Build 25 | 13 18 25 25 25 25 25 20 Greatest Support 40 | 32 32 26 30 30 30 40 40 Greatest Overweight (x) 3 | . 1 1 . . . . 3 Average Overweight (x) . | . . . . . . . . Largest Inventory Capacity 40 | 8 10 10 10 10 10 10 40 Average Capacity 13 | 7 9 10 10 10 10 10 37 Most Carried 10 | 5 7 10 10 9 10 10 10 Average Carried 7 | 2 5 8 9 9 9 10 6 Final Capacity 10 | 8 10 10 10 10 10 10 5 Final Carried 10 | 5 6 10 9 9 10 10 5 Class Distribution -------------------- 43% | Mutant 43% | Scavenger-Mutant 6% | Hauler-Mutant 4% | Hauler-Skirmisher Dominant Class ---------------- Mutant | -10/Materials Mutant | -10/Mines Scavenger-Mutant | -9/Materials Scavenger-Mutant | -9/Mines Scavenger-Mutant | -9/Exiles Scavenger-Mutant | -8/Mines Hauler-Mutant | -8/Materials Resources | -11 -10 -10 -9 -9 -9 -8 -8 ----------- Run | Yrd Mat Min Mat Min Exi Min Mat Matter Collected 894 | 213 455 119 33 2 10 27 35 Remotely . | . . . . . . . . Salvage Created 1175 | 85 625 147 50 47 . 109 112 Parts 69 | 9 32 13 . 1 . 14 . Haulers Intercepted . | . . . . . . . . Recyclers Shooed 2 | . 1 . . . . 1 . Parts Field Recycled . | . . . . . . . . Retrieved Matter . | . . . . . . . . Parts Self-Destructed . | . . . . . . . . Prevented . | . . . . . . . . Kills | -11 -10 -10 -9 -9 -9 -8 -8 ------- Run | Yrd Mat Min Mat Min Exi Min Mat Combat Hostiles Destroyed 28 | . 13 5 1 1 . 6 2 Guns 18 | . 13 4 . . . 1 . Cannons 8 | . . 1 1 1 . 5 . Classes Destroyed 7 | 2 2 . 1 1 . 1 . Worker 1 | . . . . . . 1 . Tunneler 4 | 2 1 1 . . . . . Recycler 3 | 1 2 . . . . . . Swarmer 12 | . 3 3 . . . 6 . Grunt 14 | . 10 2 . . . . 2 Brawler 1 | . . . . 1 . . . Sentry 1 | . . . 1 . . . . Best Kill Streak 7 | 1 5 4 1 1 . 7 1 Combat Bots Only 6 | . 4 3 1 1 . 6 2 Max Kills in Single Turn 2 | 1 2 2 1 1 . 1 1 Gunslinging . | . . . . . . . . Exploded . | . . . . . . . . Melee . | . . . . . . . . Uniques/NPCs Destroyed . | . . . . . . . . Combat | -11 -10 -10 -9 -9 -9 -8 -8 -------- Run | Yrd Mat Min Mat Min Exi Min Mat Hostile Shots Fired 228 | . 62 27 17 5 . 33 84 Missed 69 | . 18 8 7 . . 11 25 Damage Taken 2078 | . 545 216 123 34 . 183 977 Core 786 | . 83 67 39 6 . 32 559 Absorbed by Shields . | . . . . . . . . Core Remaining (%) 73 | 100 . 40 . . . 80 . Volleys Fired 91 | 8 45 15 3 2 . 17 1 Largest 2 | 2 2 2 2 2 . 2 1 Hottest 80 | 40 40 80 80 80 . 80 60 Shots Fired 179 | 16 88 30 6 4 . 34 1 Gun 152 | 16 88 26 3 2 . 17 . Cannon 27 | . . 4 3 2 . 17 1 Launcher . | . . . . . . . . Special . | . . . . . . . . Kinetic 152 | 16 88 26 3 2 . 17 . Thermal 27 | . . 4 3 2 . 17 1 Explosive . | . . . . . . . . Electromagnetic . | . . . . . . . . Robot Hit Streak 19 | 6 19 5 2 2 . 3 2 Robot Miss Streak 4 | 3 4 2 1 1 . 3 . Penetration Max . | . . . . . . . . Secondary Targets 1 | . . 1 . . . . . Max Gunslinging Chain 1 | . . 1 . . . . . Shots Hit Robots 114 | 9 62 20 3 2 . 15 3 Core Hits 54 | 4 31 9 2 1 . 7 . Critical Kills . | . . . . . . . . Critical Parts Destroyed 1 | . . . . . . . 1 Critical Strikes 1 | . . . . . . . 1 Smash 1 | . . . . . . . 1 Melee Attacks 7 | . 2 . . . . . 5 Impact 5 | . . . . . . . 5 Slashing 2 | . 2 . . . . . . Piercing . | . . . . . . . . Sneak Attacks . | . . . . . . . . Combat Hostiles . | . . . . . . . . Follow-up Attacks . | . . . . . . . . Damage Inflicted 1659 | 133 848 263 35 24 . 230 126 Guns 1266 | 133 842 227 18 7 . 39 . Cannons 279 | . . 36 17 17 . 191 18 Explosions . | . . . . . . . . Melee 108 | . . . . . . . 108 Ramming 6 | . 6 . . . . . . Kinetic 1266 | 133 842 227 18 7 . 39 . Thermal 279 | . . 36 17 17 . 191 18 Explosive . | . . . . . . . . Electromagnetic . | . . . . . . . . Impact 108 | . . . . . . . 108 Slashing . | . . . . . . . . Piercing . | . . . . . . . . Highest Corruption . | . . . . . . . . Average Corruption . | . . . . . . . . Corruption Purged . | . . . . . . . . Corruption Blocked . | . . . . . . . . Overload Shots . | . . . . . . . . Overflow Damage 58 | . . . . . . . 58 Projectiles . | . . . . . . . . Explosions . | . . . . . . . . Melee 58 | . . . . . . . 58 Knockbacks . | . . . . . . . . Impact . | . . . . . . . . Kinetic . | . . . . . . . . Secondary . | . . . . . . . . Self-Inflicted Damage 3 | . 3 . . . . . . Shots . | . . . . . . . . Rammed 1 | . 1 . . . . . . Targets Rammed 1 | . 1 . . . . . . Kicked . | . . . . . . . . Crushed . | . . . . . . . . Highest Temperature 101 | . 20 60 74 45 . 101 10 Average Temperature 30 | . 5 21 35 26 . 41 5 Received Heat Transfer 825 | . 255 93 45 . . . 432 Siege Activations . | . . . . . . . . Robots Corrupted . | . . . . . . . . Combat Hostiles . | . . . . . . . . Parts Fried 2 | . . . . . . . 2 Impact Corruptions 3 | . . . . . . . 3 Robots Melted . | . . . . . . . . Combat Hostiles . | . . . . . . . . Parts Melted 1 | . . . 1 . . . . Heat Transferred 592 | . . 74 37 37 . 407 37 Parts Sabotaged . | . . . . . . . . Parts Stolen . | . . . . . . . . Parts Stripped . | . . . . . . . . Power Chain Reactions . | . . . . . . . . Alert | -11 -10 -10 -9 -9 -9 -8 -8 ------- Run | Yrd Mat Min Mat Min Exi Min Mat Peak Influence 301 | 15 301 231 218 124 . 161 130 Initial 84 | . 9 56 22 84 . . 62 Average 94 | 6 144 86 119 88 . 95 65 Maximum Alert Level 1 | . 1 1 1 . . . . Low Security (%) 90 | 100 76 91 72 100 . 100 100 Level 1 9 | . 23 8 27 . . . . Level 2 . | . . . . . . . . Level 3 . | . . . . . . . . Level 4 . | . . . . . . . . Level 5 . | . . . . . . . . High Security . | . . . . . . . . Max Security . | . . . . . . . . Squads Dispatched 11 | . 3 . 3 . . . 5 Investigation 2 | . 2 . . . . . . Extermination . | . . . . . . . . Reinforcement 8 | . 1 . 3 . . . 4 Assault . | . . . . . . . . Garrison 1 | . . . . . . . 1 Intercept . | . . . . . . . . Searches Triggered . | . . . . . . . . Construction Impeded . | . . . . . . . . Haulers Reinforced . | . . . . . . . . Active Scanning Responses . | . . . . . . . . Cargo Convoy Interrupts . | . . . . . . . . Stealth | -11 -10 -10 -9 -9 -9 -8 -8 --------- Run | Yrd Mat Min Mat Min Exi Min Mat Distress Signals 4 | . 1 . 3 . . . . Communications Jammed . | . . . . . . . . Distress Signals . | . . . . . . . . Times Spotted 72 | . 19 8 14 7 . 9 15 Peak Tracking Total 10 | . 5 3 8 6 . 6 10 Tactical Retreats 7 | . . 2 2 1 . 1 1 Traps | -11 -10 -10 -9 -9 -9 -8 -8 ------- Run | Yrd Mat Min Mat Min Exi Min Mat Traps Triggered 1 | . 1 . . . . . . Indirectly . | . . . . . . . . Trap Hack Attempts . | . . . . . . . . Triggered . | . . . . . . . . Disarmed . | . . . . . . . . Reprogrammed . | . . . . . . . . Reused . | . . . . . . . . Traps Extracted . | . . . . . . . . Installed . | . . . . . . . . Triggered . | . . . . . . . . Machines | -11 -10 -10 -9 -9 -9 -8 -8 ---------- Run | Yrd Mat Min Mat Min Exi Min Mat Machines Disabled . | . . . . . . . . Max in Single Turn . | . . . . . . . . Machines Repaired . | . . . . . . . . Machines Dismantled . | . . . . . . . . Machines Sabotaged . | . . . . . . . . Overloaded Fab Kills . | . . . . . . . . Hacking | -11 -10 -10 -9 -9 -9 -8 -8 --------- Run | Yrd Mat Min Mat Min Exi Min Mat Machines Accessed 14 | . 5 2 1 . 5 . 1 Terminals 8 | . 5 1 1 . . . 1 Fabricators . | . . . . . . . . Repair Stations . | . . . . . . . . Recycling Units . | . . . . . . . . Scanalyzers . | . . . . . . . . Garrison Access . | . . . . . . . . Total Hacks 77 | . 19 4 2 . 50 . 2 Successful 59 | . 3 3 2 . 50 . 1 Failed 18 | . 16 1 . . . . 1 Catastrophic 4 | . 4 . . . . . . Database Lockouts . | . . . . . . . . Manual 20 | . 15 2 . . 1 . 2 Terminals 26 | . 19 3 2 . . . 2 Fabricators . | . . . . . . . . Repair Stations . | . . . . . . . . Recycling Units . | . . . . . . . . Scanalyzers . | . . . . . . . . Garrison Access . | . . . . . . . . Terminal Hacks 58 | . 3 2 2 . 50 . 1 Record 49 | . . . . . 49 . . Open Door 1 | . . 1 . . . . . Branch Access Points 3 | . 1 . 1 . . . 1 Emergency Access Points 1 | . 1 . . . . . . Terminal Index 1 | . 1 . . . . . . Alert Level 1 | . . . 1 . . . . Investigation Status 1 | . . 1 . . . . . Derelict Proto ID Bank 1 | . . . . . 1 . . Fabricator Hacks . | . . . . . . . . Repair Station Hacks . | . . . . . . . . Recycling Unit Hacks . | . . . . . . . . Scanalyzer . | . . . . . . . . Garrison Access Hacks . | . . . . . . . . Unauthorized Hacks 1 | . . 1 . . . . . Terminals 1 | . . 1 . . . . . Assimilate 1 | . . 1 . . . . . Fabricators . | . . . . . . . . Repair Stations . | . . . . . . . . Recycling Units . | . . . . . . . . Scanalyzers . | . . . . . . . . Garrison Access . | . . . . . . . . Data Cores Recovered . | . . . . . . . . Used . | . . . . . . . . Hacking Detections 7 | . 5 1 . . . . 1 Full Trace Events 4 | . 4 . . . . . . Feedback Events . | . . . . . . . . Feedback Blocked . | . . . . . . . . Robot Schematics Acquired . | . . . . . . . . Robots Built . | . . . . . . . . Authchips . | . . . . . . . . Time . | . . . . . . . . Total Robot Build Rating . | . . . . . . . . Part Schematics Acquired . | . . . . . . . . Parts Built . | . . . . . . . . Authchips . | . . . . . . . . Time . | . . . . . . . . Total Part Build Rating . | . . . . . . . . Parts Repaired . | . . . . . . . . Time . | . . . . . . . . Parts Recycled . | . . . . . . . . Recycled Matter . | . . . . . . . . Retrieved Matter . | . . . . . . . . Retrieved Components . | . . . . . . . . Parts Scanalyzed . | . . . . . . . . Part Schematics Acquired . | . . . . . . . . Parts Damaged . | . . . . . . . . Bothacking | -11 -10 -10 -9 -9 -9 -8 -8 ------------ Run | Yrd Mat Min Mat Min Exi Min Mat Used RIF Installer . | . . . . . . . . Robots Hacked . | . . . . . . . . Non-combat . | . . . . . . . . Combat . | . . . . . . . . Robot Hacks Applied . | . . . . . . . . Relay Couplers Released . | . . . . . . . . Fabnet Peak Effective % . | . . . . . . . . Robots Rewired . | . . . . . . . . Allies Hacked . | . . . . . . . . Hacks Repelled . | . . . . . . . . Allies | -11 -10 -10 -9 -9 -9 -8 -8 -------- Run | Yrd Mat Min Mat Min Exi Min Mat Total Allies 6 | . . 3 2 1 . . . Largest Group 3 | . . 3 2 1 . . . Highest-Rated Group 68 | . . 68 52 8 . . . Highest-Rated Ally 31 | . . 31 31 8 . . . Total Orders 10 | . . 5 1 2 . 2 . EXPLORE 9 | . . 4 1 2 . 2 . RETURN 1 | . . 1 . . . . . Ally Attacks 68 | . . 5 37 15 . 10 1 Total Damage 427 | . . 38 274 83 . 26 6 Kills 6 | . . 1 5 . . . . Allies Corrupted . | . . . . . . . . Allies Melted . | . . . . . . . . Intel | -11 -10 -10 -9 -9 -9 -8 -8 ------- Run | Yrd Mat Min Mat Min Exi Min Mat Robot Analysis Total . | . . . . . . . . Derelict Logs Recovered 2 | . . 1 . 1 . . . Drone Launches 50 | . . 6 22 11 . 10 1 Drone Recoveries 48 | . . 6 22 10 . 10 . Exploration | -11 -10 -10 -9 -9 -9 -8 -8 ------------- Run | Yrd Mat Min Mat Min Exi Min Mat Turns Passed 3068 | 134 553 798 195 174 423 360 431 Spaces Moved 2470 | 92 376 629 174 130 521 301 247 Core 88 | 2 . . . . . . 86 Treads . | . . . . . . . . Legs . | . . . . . . . . Wheels 2382 | 90 376 629 174 130 521 301 161 Hover . | . . . . . . . . Flight . | . . . . . . . . Fastest Speed 50 | 50 90 80 80 80 80 80 50 Average Speed 84 | 96 96 86 80 80 80 80 77 Slowest Speed 200 | 100 115 95 80 80 80 80 200 Overloaded Moves . | . . . . . . . . Propulsion Burnouts . | . . . . . . . . Robots Hopped . | . . . . . . . . Cave-ins Triggered . | . . . . . . . . Exploration Rate (%) 58 | 4 54 100 31 72 91 94 21 Regions Visited 7 Branch Regions 4 Pre-discovered Areas 3 | . . 1 . 1 1 . . Known Exits Taken 2 | . 1 . 1 . . . . Unknown Exits Taken 5 | 1 . 1 . 1 1 1 . Scrap Searched 4 | . . 2 . 2 . . . Spaces Dug 2 | . 2 . . . . . . Terrain Destroyed 2 | . 2 . . . . . . Melee 2 | . 2 . . . . . . Projectile . | . . . . . . . . AOE . | . . . . . . . . Terrain Rammed . | . . . . . . . . Walls Destroyed . | . . . . . . . . Machines Disabled . | . . . . . . . . Actions | -11 -10 -10 -9 -9 -9 -8 -8 --------- Run | Yrd Mat Min Mat Min Exi Min Mat Total 3255 | 121 473 849 223 196 528 388 477 Wait 618 | . 30 195 44 65 . 70 214 Move 2463 | 91 375 628 173 129 520 300 247 Hop . | . . . . . . . . Pick Up 31 | 13 7 6 . . 3 . 2 Fast Attach 1 | . . . . . . 1 . Attach 16 | 7 3 2 1 . . . 3 Detach . | . . . . . . . . Swap 17 | 1 7 3 2 . 1 . 3 Drop 10 | 1 3 . . . 4 . 2 Fire 91 | 8 45 15 3 2 . 17 1 Melee 7 | . 2 . . . . . 5 Ram 1 | . 1 . . . . . . Kick . | . . . . . . . . Crush . | . . . . . . . . Escape Stasis . | . . . . . . . . Rewire . | . . . . . . . . Trap . | . . . . . . . . Miscellaneous . | . . . . . . . . Route ------- -11/Scrapyard -10/Materials (discovered 3 exits: *Mat / *Min x2) -10/Mines (discovered 3 exits: *Mat x2 / [*Sub]) -9/Materials (discovered 2 exits: *Mat / *Min) -9/Mines -9/Exiles -8/Mines (discovered 2 exits: *Mat x2) -8/Materials (discovered 2 exits: [Fac] / Sto) History --------- Turn | Location | Event 8 | -11/Scrapyard | Discovered new exit (range 16) 135 | -11/Scrapyard | Entered Materials 335 | -10/Materials | Build established: Mutant 529 | -10/Materials | Discovered new exit (range 7) 661 | -10/Materials | Identified exit to Mines 688 | -10/Materials | Entered Mines 708 | -10/Mines | Discovered new exit (range 8) 1010 | -10/Mines | Discovered new exit (range 11) 1016 | -10/Mines | Core integrity fell below 50% 1189 | -10/Mines | Learned location of Zion (-6) 1193 | -10/Mines | Found the Drone Emporium 1196 | -10/Mines | Found Prototype Device 1197 | -10/Mines | Identified Splice Drone Bay 1228 | -10/Mines | Discovered new exit (range 62) 1486 | -10/Mines | Entered Materials 1486 | -9/Materials | Accompanied by 2 allies 1486 | -9/Materials | Evolved 2 slots: Propulsion x2 1491 | -9/Materials | Led the pair of lost Derelicts to an unsafe place 1547 | -9/Materials | Identified exit to Mines 1632 | -9/Materials | Discovered new exit (range 11) 1681 | -9/Materials | Entered Mines 1722 | -9/Mines | Met a Derelict bent on vengeance 1787 | -9/Mines | Found a damaged Exp. Sensor Array with a note attached 1801 | -9/Mines | Build established: Scavenger-Mutant 1850 | -9/Mines | Deemed a non-threat by the Exiles lab entrance 1851 | -9/Mines | Discovered new exit (range 5) 1855 | -9/Mines | Entered Exiles 1876 | -9/Exiles | Met 8R-AWN 1888 | -9/Exiles | Met EX-HEX 1920 | -9/Exiles | Met EX-BIN 1934 | -9/Exiles | Aligned with FarCom system 1935 | -9/Exiles | Given EX-Vault access code 1953 | -9/Exiles | Opened EX-Vault 1963 | -9/Exiles | Found Lightpack 2.0 1999 | -9/Exiles | Warned to stay clear of 0b10 Research branches 2021 | -9/Exiles | Met EX-DEC 2073 | -9/Exiles | Visited The Gauntlet 2265 | -9/Exiles | Discovered new exit (range 14) 2278 | -9/Exiles | Left Exiles lab with Lightpack 2.0 2278 | -9/Exiles | Entered Mines 2363 | -8/Mines | Discovered new exit (range 22) 2368 | -8/Mines | Discovered new exit (range 30) 2638 | -8/Mines | Entered Materials 2638 | -8/Materials | Evolved 2 slots: Utility x2 2897 | -8/Materials | Discovered new exit (range 15) 2918 | -8/Materials | Identified exit to Storage 2980 | -8/Materials | Garrison activated, responded to threat 3033 | -8/Materials | Released all parts (2) 3046 | -8/Materials | Core integrity fell below 50% 3054 | -8/Materials | Core integrity fell below 20% 3056 | -8/Materials | Lost 8 parts (2p4n1u1w) 3069 | -8/Materials | Destroyed by C-17 Slicer with Blade Saw Last Messages --------------- Splice Drone injecting Y-45 Defender... Initiating full reboot, ETC: 18. Splice Drone Bay destroyed. Critical hit (Burn: +37). >> Lost connection to Splice Drone. Splice Drone suffers critical hit (Burn). Splice Drone heat damages Mak. Microthruster, Mak. Microthruster, Mak. Microthruster. Splice Drone destroyed. Y-45 Defender reactivates. Lgt. Ion Engine destroyed. ALERT: Hostiles spotted, dispatching reinforcements to Terminal M007. Released Hvy. Mace. Released Lightpack 2.0. C-17 Slicer knocked back. G-47 Trooper knocked back. Knocked back. K-01 Serf destroyed. Critical hit (Burn: +37). Map ----- +----------------------------------------------------+ | # """ # !!! #?????????????? | | # """ / !! ######????????? | | # """ #! !! +????????? | | # #######+#######????????? | | # / # #??? ???????? | | # ! ## #?#?????????? | | ####### ## #????#??????? | | #???# # #???????????? | | #???# # #???????????? | | #???# %= # #???????????? | | ##### = # #???????????? | | + #????????#??? | | ##### # ########+###????#??????? | | #???# #####??????# #?????????????? | | ##??## #??????????# #?????????????? | | ?????#+#??????????# #?????????????? | | ?????T ??#?######## #??#?????##???? | | ????? + Y #?####### ###?? | | #???? ?????######## #?# "T" * #?? | | ??????????????????# #?# Y #?? | | ??????????????????# #?# [#?? | | ??????????#???????# #?# #?? | | ####+############## ### """ [= #?? | | # """ == #?? | | c/ """ #?? | | # c@ #?? | | #################### ####+######?? | | #??????????????????# #???????????? | | !#??????????????????# #?????